fUSD/lending_fUSD_20240213
["ID","MTS","AMOUNT","RATE_DAILY","PERIOD"]
[313917605,1707822645591,-500.0,0.00028767,2]
[313917606,1707822645600,-510.85197071,0.00028767,2]
[313917607,1707822645609,-500.0,0.00028767,2]
[313917608,1707822645619,-521.57248437,0.00028767,2]
[313917609,1707822645628,-500.0,0.00028767,2]
[313917610,1707822645637,-500.0,0.00028767,2]
[313917611,1707822645646,-500.0,0.00028767,2]
[313917612,1707822645656,-571.4,0.00028767,2]
[313917613,1707822645665,-500.0,0.00028767,2]
[313917614,1707822645674,-568.58,0.00028767,2]
[313917615,1707822645683,-1811.11,0.00028767,2]
[313917616,1707822645693,-500.0,0.00028767,2]
[313917617,1707822645702,-1135.68,0.00028767,2]
[313917618,1707822645711,-500.0,0.00028767,2]
[313917619,1707822645720,-500.0,0.00028767,2]
[313917620,1707822645730,-500.0,0.00028767,2]
[313917621,1707822645739,-500.0,0.00028767,2]
[313917622,1707822645749,-822.05,0.00028767,2]
[313917623,1707822645758,-500.0,0.00028767,2]
[313917624,1707822645767,-500.0,0.00028767,2]
[313917625,1707822645777,-500.0,0.00028767,2]
[313917626,1707822645786,-500.0,0.00028767,2]
[313917628,1707822645834,-514.18,0.00028767,2]
[313917629,1707822645843,-500.0,0.00028767,2]
[313917630,1707822645852,-576.16,0.00028767,2]
[313917631,1707822645861,-500.0,0.00028767,2]
[313917632,1707822645870,-500.0,0.00028767,2]
[313917633,1707822645879,-500.0,0.00028767,2]
[313917634,1707822645888,-500.0,0.00028767,2]
[313917635,1707822645897,-1864.09,0.00028767,2]
[313917636,1707822645906,-512.2726976,0.00028767,2]
[313917637,1707822645915,-500.0,0.00028767,2]
[313917640,1707822645924,-549.64994365,0.00028767,2]
[313917643,1707822645933,-500.0,0.00028767,2]
[313917645,1707822645942,-500.0,0.00028767,2]
[313917647,1707822645951,-500.0,0.00028767,2]
[313917648,1707822645960,-1096.54,0.00028767,2]
[313917650,1707822645969,-553.33903422,0.00028767,2]
[313917652,1707822645978,-500.0,0.00028767,2]
[313917654,1707822645988,-500.0,0.00028767,2]
[313917656,1707822645997,-500.0,0.00028767,2]
[313917658,1707822646006,-500.0,0.00028767,2]
[313917660,1707822646016,-500.0,0.00028767,2]
[313917662,1707822646028,-500.0,0.00028767,2]
[313917664,1707822646037,-500.0,0.00028767,2]
[313917666,1707822646046,-522.32,0.00028767,2]
[313917668,1707822646054,-354.43265713,0.00028767,2]
[313917670,1707822646063,-1508.34,0.00028767,2]
[313917672,1707822646072,-596.92768253,0.00028767,2]
[313917674,1707822646081,-500.0,0.00028767,2]
[313917676,1707822646089,-547.91,0.00028767,2]
[313917678,1707822646099,-1764.68,0.00028767,2]
[313917680,1707822646108,-500.0,0.00028767,2]
[313917682,1707822646118,-500.0,0.00028767,2]
[313917684,1707822646127,-478.47010479,0.00028767,2]
[313917685,1707822646136,-500.0,0.00028767,2]
[313917686,1707822646145,-537.79944241,0.00028767,2]
[313917687,1707822646154,-1217.87,0.00028767,2]
[313917688,1707822646163,-500.0,0.00028767,2]
[313917689,1707822646172,-500.0,0.00028767,2]
[313917690,1707822646180,-375.22720687,0.00028767,2]
[313917692,1707822646189,-263.31169319,0.00028767,2]
[313917694,1707822646198,-569.91979059,0.00028767,2]
[313917696,1707822646207,-500.0,0.00028767,2]
[313917698,1707822646216,-2546.08,0.00028767,2]
[313917700,1707822646225,-500.0,0.00028767,2]
[313917702,1707822646234,-500.0,0.00028767,2]
[313917704,1707822646243,-1457.47,0.00028767,2]
[313917706,1707822646252,-500.0,0.00028767,2]
[313917708,1707822646262,-500.0,0.00028767,2]
[313917710,1707822646271,-500.0,0.00028767,2]
[313917712,1707822646280,-500.0,0.00028767,2]
[313917714,1707822646289,-500.0,0.00028767,2]
[313917716,1707822646298,-500.0,0.00028767,2]
[313917718,1707822646306,-500.0,0.00028767,2]
[313917720,1707822646316,-500.0,0.00028767,2]
[313917722,1707822646325,-500.0,0.00028767,2]
[313917724,1707822646334,-500.0,0.00028767,2]
[313917726,1707822646343,-782.51,0.00028767,2]
[313917728,1707822646352,-500.0,0.00028767,2]
[313917730,1707822646361,-500.0,0.00028767,2]
[313917732,1707822646370,-500.0,0.00028767,2]
[313917734,1707822646379,-500.0,0.00028767,2]
[313917736,1707822646388,-587.85,0.00028767,2]
[313917738,1707822646397,-1026.56,0.00028767,2]
[313917739,1707822646406,-500.0,0.00028767,2]
[313917740,1707822646414,-500.0,0.00028767,2]
[313917741,1707822646423,-500.0,0.00028767,2]
[313917742,1707822646432,-500.0,0.00028767,2]
[313917743,1707822646441,-500.0,0.00028767,2]
[313917744,1707822646449,-500.0,0.00028767,2]
[313917745,1707822646458,-500.0,0.00028767,2]
[313917746,1707822646467,-1095.23,0.00028767,2]
[313917747,1707822646476,-500.0,0.00028767,2]
[313917748,1707822646485,-594.99507877,0.00028767,2]
[313917749,1707822646494,-500.0,0.00028767,2]
[313917750,1707822646503,-500.0,0.00028767,2]
[313917751,1707822646511,-500.0,0.00028767,2]
[313917752,1707822646520,-1023.1,0.00028767,2]
[313917753,1707822646529,-500.0,0.00028767,2]
[313917754,1707822646538,-526.73,0.00028767,2]
[313917755,1707822646547,-500.0,0.00028767,2]
[313917756,1707822646556,-500.0,0.00028767,2]
[313917757,1707822646566,-500.0,0.00028767,2]
[313917758,1707822646574,-500.0,0.00028767,2]
[313917759,1707822646583,-500.0,0.00028767,2]
[313917760,1707822646592,-500.0,0.00028767,2]
[313917761,1707822646601,-500.0,0.00028767,2]
[313917762,1707822646609,-500.0,0.00028767,2]
[313917763,1707822646618,-500.0,0.00028767,2]
[313917764,1707822646627,-1715.86,0.00028767,2]
[313917765,1707822646636,-500.0,0.00028767,2]
[313917766,1707822646645,-508.14,0.00028767,2]
[313917767,1707822646654,-500.0,0.00028767,2]
[313917768,1707822646663,-500.0,0.00028767,2]
[313917769,1707822646672,-500.0,0.00028767,2]
[313917770,1707822646681,-500.0,0.00028767,2]
[313917771,1707822646689,-500.0,0.00028767,2]
[313917772,1707822646698,-562.43,0.00028767,2]
[313917773,1707822646707,-500.0,0.00028767,2]
[313917774,1707822646716,-500.0,0.00028767,2]
[313917775,1707822646725,-500.0,0.00028767,2]
[313917776,1707822646734,-500.0,0.00028767,2]
[313917777,1707822646743,-500.0,0.00028767,2]
[313917778,1707822646752,-1103.36,0.00028767,2]
[313917779,1707822646762,-500.0,0.00028767,2]
[313917780,1707822646771,-500.0,0.00028767,2]
[313917781,1707822646780,-613.04,0.00028767,2]
[313917782,1707822646789,-500.0,0.00028767,2]
[313917783,1707822646799,-500.0,0.00028767,2]
[313917784,1707822646808,-2230.05,0.00028767,2]
[313917785,1707822646819,-500.0,0.00028767,2]
[313917786,1707822646828,-500.0,0.00028767,2]
[313917787,1707822646837,-583.09164613,0.00028767,2]
[313917788,1707822646847,-500.0,0.00028767,2]
[313917789,1707822646855,-500.0,0.00028767,2]
[313917790,1707822646864,-500.0,0.00028767,2]
[313917791,1707822646873,-529.0,0.00028767,2]
[313917792,1707822646883,-535.97,0.00028767,2]
[313917793,1707822646892,-500.0,0.00028767,2]
[313917794,1707822646901,-1281.56,0.00028767,2]
[313917795,1707822646910,-579.34357023,0.00028767,2]
[313917796,1707822646919,-500.0,0.00028767,2]
[313917797,1707822646928,-500.0,0.00028767,2]
[313917798,1707822646938,-500.0,0.00028767,2]
[313917799,1707822646947,-500.0,0.00028767,2]
[313917800,1707822646956,-1061.38847054,0.00028767,5]
[313917801,1707822646965,-500.0,0.00028767,2]
[313917802,1707822646974,-500.0,0.00028767,2]
[313917803,1707822646983,-500.0,0.00028767,2]
[313917804,1707822646992,-500.0,0.00028767,2]
[313917805,1707822647002,-500.0,0.00028767,2]
[313917806,1707822647011,-50000.0,0.00028794,7]
[313917807,1707822647025,-20822.26228374,0.00028794,7]
[313917808,1707822647034,-26135.2046118,0.00028794,7]
[313917809,1707822647042,-50000.0,0.00028794,7]
[313917810,1707822647051,-54542.94676551,0.00028794,7]
[313917811,1707822647062,-17599.56398531,0.00028794,7]
[313917812,1707822647071,-1000.0,0.000288,2]
[313917813,1707822647080,-328.54087508,0.00028804,2]
[313917814,1707822647089,-7614.49256183,0.00028837,6]
[313917815,1707822647099,-200.0,0.00028837,2]
[313917816,1707822647107,-215.825539,0.00028837,3]
[313917817,1707822647117,-152.79276745,0.00028838,2]
[313917818,1707822647126,-800.0,0.00028852,2]
[313917819,1707822647135,-200.0,0.00028852,2]
[313917820,1707822647144,-500.0,0.00028852,2]
[313917821,1707822647153,-150.0,0.00028856,2]
[313917822,1707822647162,-150.0,0.0002886,2]
[313917823,1707822647174,-150.0,0.0002886,2]
[313917824,1707822647182,-150.0,0.00028863,2]
[313917825,1707822647192,-150.0,0.00028868,2]
[313917826,1707822647201,-150.0,0.0002887,2]
[313917827,1707822647210,-328.54087508,0.00028873,2]
[313917828,1707822647219,-500.0,0.0002889,2]
[313917829,1707822647228,-150.0,0.00028892,2]
[313917830,1707822647236,-150.0,0.00028893,2]
[313917831,1707822647246,-200.0,0.00028896,2]
[313917832,1707822647255,-800.0,0.00028896,2]
[313917833,1707822647264,-150.0,0.000289,2]
[313917834,1707822647273,-154.81,0.000289,2]
[313917835,1707822647282,-150.0,0.00028913,2]
[313917836,1707822647290,-150.0,0.00028915,2]
[313917837,1707822647299,-150.0,0.00028918,2]
[313917838,1707822647308,-150.0,0.00028933,2]
[313917839,1707822647318,-150.0,0.00028934,2]
[313917840,1707822647327,-157.25879482,0.00028939,2]
[313917841,1707822647336,-5244.05633752,0.00028939,2]
[313917842,1707822647345,-158.57607716,0.00028939,2]
[313917843,1707822647354,-150.0,0.0002894,2]
[313917844,1707822647363,-468.82942622,0.00028941,2]
[313917845,1707822647372,-169.83191296,0.00028941,15]
[313917846,1707822647382,-328.54087508,0.00028941,2]
[313917847,1707822647397,-1131.53282418,0.00028941,2]
[313917848,1707822647406,-755.79459009,0.00028941,2]
[313917849,1707822647415,-150.0,0.00028942,2]
[313917850,1707822647424,-150.0,0.00028944,2]
[313917851,1707822647433,-150.0,0.0002895,2]
[313917852,1707822647442,-150.0,0.00028956,2]
[313917853,1707822647450,-300.0,0.00028959,2]
[313917854,1707822647459,-150.0,0.00028961,2]
[313917855,1707822647469,-150.0,0.00028963,2]
[313917856,1707822647478,-300.0,0.00028969,2]
[313917857,1707822647486,-300.0,0.0002897,2]
[313917858,1707822647496,-150.0,0.0002899,2]
[313917859,1707822647505,-150.0,0.00028991,2]
[313917860,1707822647514,-150.0,0.00028997,2]
[313917861,1707822647523,-150.0,0.00028997,2]
[313917862,1707822647533,-150.0,0.00029001,2]
[313917863,1707822647542,-150.0,0.00029005,2]
[313917864,1707822647551,-1062.26,0.00029009,2]
[313917865,1707822647560,-150.0,0.0002901,2]
[313917866,1707822647569,-150.0,0.00029013,2]
[313917867,1707822647578,-5244.0563375,0.00029026,2]
[313917868,1707822647587,-170.24669159,0.00029033,2]
[313917869,1707822647596,-150.0,0.00029034,2]
[313917870,1707822647605,-500.0,0.00029037,3]
[313917871,1707822647615,-151.0,0.00029038,5]
[313917872,1707822647623,-602.40714188,0.00029038,2]
[313917873,1707822647632,-155.93044458,0.00029038,2]
[313917874,1707822647642,-1234.572843,0.00029038,2]
[313917875,1707822647651,-1053.18061716,0.00029038,2]
[313917876,1707822647660,-5323.97518554,0.00029038,2]
[313917877,1707822647669,-1012046.86884972,0.00029038,2]
[313917878,1707822647938,-57295.47455977,0.00029038,2]
[313917879,1707822647947,-150.0,0.00029039,2]
[313917880,1707822647957,-294.15590585,0.0002904,2]
[313917881,1707822647966,-150.0,0.0002904,2]
[313917882,1707822647975,-488619.12012011,0.00029041,3]
[313917883,1707822647986,-29151.3656423,0.00029041,3]
[313917884,1707822647998,-46452.2862411,0.00029041,3]
[313917885,1707822648009,-2178.02736905,0.00029041,3]
[313917886,1707822648025,-17326.06736371,0.00029041,3]
[313917887,1707822648036,-2457.09624937,0.00029041,3]
[313917888,1707822648048,-1321.86465,0.00029041,3]
[313917889,1707822648076,-600.101283,0.00029041,3]
[313917890,1707822648388,-613.79,0.00027785,2]
[313917891,1707822648397,-1383.44254024,0.00028667,2]
[313917892,1707822648413,-3616.55745976,0.00028667,2]
[313917893,1707822648422,-500.0,0.00028767,2]
[313917894,1707822648431,-3006.40872981,0.00029041,3]
[313917895,1707822648446,-162289.03429178,0.00029041,3]
[313917896,1707822648458,-275.40697473,0.00029041,3]
[313917897,1707822648469,-3215.42975538,0.00029041,3]
[313917898,1707822648480,-24313.74817788,0.00029041,3]
[313917899,1707822648525,-407.13101451,0.00029041,3]
[313917961,1707823832217,-303.87381504,0.00024456,2]
[313917962,1707823832227,-1051.3255843,0.00024457,2]
[313917963,1707823832237,-420.44975688,0.00024458,2]
[313917964,1707823832246,-640.70049248,0.00024458,2]
[313917965,1707823832256,-198.05422845,0.00024459,2]
[313917966,1707823832265,-150.0,0.0002446,2]
[313917967,1707823832275,-3697.69464102,0.0002446,4]
[313917968,1707823832284,-4724.16640004,0.00024461,2]
[313917969,1707823832294,-837.05,0.00024474,2]
[313917970,1707823832303,-18503.94280751,0.00024857,2]
[313917971,1707823832313,-159.72869695,0.00024872,2]
[313917972,1707823832325,-3587.21,0.00024872,2]
[313917973,1707823832335,-3242.43,0.00024975,2]
[313917974,1707823832344,-999.99,0.00024975,2]
[313917975,1707823832355,-161.15943825,0.00024975,2]
[313917976,1707823832365,-161.15943825,0.00024975,2]
[313917977,1707823832375,-350.0,0.00025,3]
[313917978,1707823832384,-499.99,0.00025,2]
[313917979,1707823832395,-5875.02060459,0.00025,2]
[313917980,1707823832406,-515.28,0.00025,2]
[313917981,1707823832418,-159.72869695,0.00025147,2]
[313917982,1707823832428,-159.72869695,0.00025422,2]
[313917983,1707823832440,-159.72869695,0.00025698,2]
[313917984,1707823832450,-159.72869695,0.00025973,2]
[313917985,1707823832460,-156.19609828,0.00026137,2]
[313917986,1707823832471,-159.72869695,0.00026248,2]
[313917987,1707823832481,-229.27,0.00026259,2]
[313917988,1707823832490,-2000.0,0.00026265,2]
[313917989,1707823832501,-167.98,0.0002627,2]
[313917990,1707823832512,-23900.0,0.00026295,2]
[313917991,1707823832524,-800.0,0.00026454,2]
[313917992,1707823832535,-159.72869695,0.00026523,2]
[313917993,1707823832545,-250.0,0.00026548,2]
[313917994,1707823832555,-205.0,0.00026579,2]
[313917995,1707823832565,-157.76,0.00026727,2]
[313917997,1707823832575,-837.05,0.00026738,2]
[313917999,1707823832585,-159.72869695,0.00026798,2]
[313918001,1707823832595,-400.0,0.00027,3]
[313918003,1707823832606,-595.48,0.00027013,2]
[313918005,1707823832615,-159.72869695,0.00027074,2]
[313918007,1707823832626,-188.2,0.00027083,2]
[313918010,1707823832635,-234.99,0.00027175,2]
[313918012,1707823832646,-1000.0,0.00027177,2]
[313918014,1707823832656,-200.0,0.00027242,2]
[313918015,1707823832666,-265.04321081,0.00027308,3]
[313918016,1707823832675,-156.33721459,0.00027308,3]
[313918017,1707823832684,-222.20882532,0.00027308,3]
[313918018,1707823832694,-159.72869695,0.00027349,2]
[313918020,1707823832703,-157.76,0.00027423,2]
[313918022,1707823832713,-159.72869695,0.00027624,2]
[313918023,1707823832723,-11633.0,0.000277,2]
[313918024,1707823832734,-331.6728,0.00027787,2]
[313918025,1707823832744,-965.034,0.00027863,2]
[313918026,1707823832754,-159.72869695,0.00027899,2]
[313918027,1707823832765,-969.07959217,0.00028,2]
[313918028,1707823832774,-157.76,0.00028119,2]
[313918029,1707823832785,-159.72869695,0.00028174,2]
[313918030,1707823832794,-167.03,0.00028185,2]
[313918031,1707823832805,-159.72869695,0.0002845,2]
[313918032,1707823832818,-205.0,0.00028545,5]
[313918033,1707823832831,-595.48,0.00028656,2]
[313918034,1707823832856,-339.50458935,0.00028693,2]
[313918035,1707823832880,-1371.76002183,0.00028693,2]
[313918036,1707823832904,-453.22554784,0.000287,2]
[313918037,1707823832926,-159.72869695,0.00028725,2]
[313918038,1707823832949,-409.54,0.0002874,2]
[313918039,1707823832975,-234.88931985,0.00028748,2]
[313918040,1707823833000,-150.13706,0.0002875,2]
[313918041,1707823833019,-397.36760372,0.00028765,2]
[313918042,1707823833029,-402.68003383,0.00028765,2]
[313918043,1707823833039,-204.49201258,0.00028765,2]
[313918044,1707823833049,-179.81409361,0.00028765,2]
[313918045,1707823833059,-686.99133453,0.00028765,2]
[313918046,1707823833068,-3000.0,0.00028765,2]
[313918047,1707823833078,-155.19616596,0.00028766,2]
[313918048,1707823833087,-1387.10464213,0.00028766,2]
[313918049,1707823833097,-701.95,0.00028767,2]
[313918050,1707823833106,-500.0,0.00028767,2]
[313918051,1707823833116,-500.0,0.00028767,2]
[313918052,1707823833125,-500.0,0.00028767,2]
[313918053,1707823833135,-213.52815518,0.00028767,2]
[313918054,1707823833145,-500.0,0.00028767,2]
[313918055,1707823833154,-500.0,0.00028767,2]
[313918056,1707823833164,-166.54354739,0.00028767,2]
[313918057,1707823833173,-500.0,0.00028767,2]
[313918058,1707823833182,-516.09298155,0.00028767,2]
[313918059,1707823833192,-500.0,0.00028767,2]
[313918060,1707823833202,-185.46,0.00028767,2]
[313918061,1707823833212,-500.0,0.00028767,2]
[313918062,1707823833221,-500.0,0.00028767,2]
[313918063,1707823833230,-500.0,0.00028767,2]
[313918064,1707823833240,-344.18797395,0.00028767,2]
[313918065,1707823833249,-500.0,0.00028767,2]
[313918066,1707823833259,-500.0,0.00028767,2]
[313918067,1707823833269,-500.0,0.00028767,2]
[313918068,1707823833279,-551.67157159,0.00028767,2]
[313918069,1707823833289,-500.0,0.00028767,2]
[313918070,1707823833299,-371.50445755,0.00028767,2]
[313918071,1707823833308,-475.20913046,0.00028767,2]
[313918072,1707823833318,-163.98550413,0.00028781,2]
[313918073,1707823833329,-500.0,0.00028793,2]
[313918074,1707823833339,-553.76500096,0.00028793,2]
[313918075,1707823833352,-240.35440437,0.00028793,2]
[313918076,1707823833365,-500.0,0.00028793,2]
[313918077,1707823833375,-500.0,0.00028793,7]
[313918078,1707823833386,-600.95428964,0.00028793,2]
[313918079,1707823833398,-500.0,0.00028793,2]
[313918080,1707823833408,-547.81279146,0.00028793,2]
[313918081,1707823833418,-500.0,0.00028793,2]
[313918082,1707823833429,-500.0,0.00028793,2]
[313918083,1707823833439,-500.0,0.00028793,2]
[313918084,1707823833449,-500.0,0.00028793,2]
[313918085,1707823833460,-150.0,0.00028793,2]
[313918086,1707823833470,-336.98492072,0.00028793,2]
[313918087,1707823833481,-500.0,0.00028793,2]
[313918088,1707823833491,-500.0,0.00028793,2]
[313918089,1707823833502,-500.0,0.00028793,2]
[313918090,1707823833513,-500.0,0.00028793,2]
[313918091,1707823833524,-226.74238218,0.00028793,2]
[313918092,1707823833535,-500.0,0.00028793,2]
[313918093,1707823833546,-500.0,0.00028793,2]
[313918094,1707823833556,-500.0,0.00028793,2]
[313918095,1707823833567,-538.94196779,0.00028793,2]
[313918096,1707823833578,-500.0,0.00028793,2]
[313918097,1707823833588,-564.73010414,0.00028793,2]
[313918098,1707823833598,-548.10448524,0.00028793,2]
[313918099,1707823833607,-500.0,0.00028793,2]
[313918100,1707823833617,-419.29678064,0.00028793,2]
[313918101,1707823833627,-500.0,0.00028793,2]
[313918102,1707823833637,-500.0,0.00028793,2]
[313918103,1707823833646,-547.95025214,0.00028793,2]
[313918104,1707823833656,-500.0,0.00028793,2]
[313918105,1707823833666,-500.0,0.00028793,2]
[313918106,1707823833676,-519.42852308,0.00028793,2]
[313918107,1707823833685,-556.05267109,0.00028793,2]
[313918108,1707823833696,-500.0,0.00028793,2]
[313918109,1707823833707,-500.0,0.00028793,2]
[313918110,1707823833717,-500.0,0.00028793,2]
[313918111,1707823833729,-500.0,0.00028793,2]
[313918112,1707823833742,-500.0,0.00028793,2]
[313918113,1707823833754,-500.0,0.00028793,2]
[313918114,1707823833763,-500.0,0.00028793,2]
[313918115,1707823833776,-566.94101131,0.00028793,2]
[313918116,1707823833786,-1228.16,0.00028793,2]
[313918117,1707823833796,-228.36492383,0.00028793,2]
[313918118,1707823833808,-500.0,0.00028793,2]
[313918119,1707823833819,-496.29794487,0.00028793,2]
[313918120,1707823833830,-500.0,0.00028793,2]
[313918121,1707823833841,-1025.19,0.00028793,2]
[313918122,1707823833853,-500.0,0.00028793,2]
[313918123,1707823833864,-500.0,0.00028793,2]
[313918124,1707823833873,-500.0,0.00028793,2]
[313918125,1707823833884,-500.0,0.00028793,2]
[313918126,1707823833893,-500.0,0.00028793,2]
[313918127,1707823833903,-500.0,0.00028793,2]
[313918128,1707823833914,-500.0,0.00028793,2]
[313918129,1707823833925,-500.0,0.00028793,2]
[313918130,1707823833935,-500.0,0.00028793,2]
[313918131,1707823833947,-500.0,0.00028793,2]
[313918132,1707823833958,-500.0,0.00028793,2]
[313918133,1707823833968,-557.33425216,0.00028793,2]
[313918134,1707823833978,-1474.43,0.00028793,2]
[313918135,1707823833987,-500.0,0.00028793,2]
[313918136,1707823833998,-835.02,0.00028793,2]
[313918137,1707823834009,-500.0,0.00028793,2]
[313918138,1707823834020,-714.04,0.00028793,2]
[313918139,1707823834031,-500.0,0.00028793,2]
[313918140,1707823834042,-500.0,0.00028793,2]
[313918141,1707823834053,-500.0,0.00028793,2]
[313918142,1707823834063,-500.0,0.00028793,2]
[313918143,1707823834073,-500.0,0.00028793,2]
[313918144,1707823834082,-500.0,0.00028793,2]
[313918145,1707823834093,-500.0,0.00028793,2]
[313918146,1707823834103,-500.0,0.00028793,2]
[313918147,1707823834113,-500.0,0.00028793,2]
[313918148,1707823834124,-500.0,0.00028793,2]
[313918149,1707823834134,-500.0,0.00028793,2]
[313918150,1707823834144,-547.59,0.00028793,2]
[313918151,1707823834154,-577.40244774,0.00028793,2]
[313918152,1707823834164,-1562.04,0.00028793,2]
[313918153,1707823834174,-202.7,0.00028793,2]
[313918154,1707823834184,-1088.36,0.00028793,2]
[313918155,1707823834195,-682.24,0.00028793,2]
[313918156,1707823834205,-500.0,0.00028793,2]
[313918157,1707823834215,-500.0,0.00028793,2]
[313918158,1707823834225,-656.5,0.00028793,2]
[313918159,1707823834236,-539.11443612,0.00028793,2]
[313918160,1707823834247,-500.0,0.00028793,2]
[313918161,1707823834257,-1750.39,0.00028793,2]
[313918162,1707823834267,-1786.42,0.00028793,2]
[313918163,1707823834278,-500.0,0.00028793,2]
[313918164,1707823834288,-500.0,0.00028793,2]
[313918165,1707823834298,-799.68,0.00028793,2]
[313918166,1707823834308,-500.0,0.00028793,2]
[313918167,1707823834319,-500.0,0.00028793,2]
[313918168,1707823834328,-500.0,0.00028793,2]
[313918169,1707823834338,-500.0,0.00028793,2]
[313918170,1707823834349,-623.69808442,0.00028793,2]
[313918171,1707823834362,-650.86,0.00028793,2]
[313918172,1707823834372,-500.0,0.00028793,2]
[313918173,1707823834382,-500.0,0.00028793,2]
[313918174,1707823834392,-500.0,0.00028793,2]
[313918175,1707823834402,-500.0,0.00028793,2]
[313918176,1707823834412,-1873.71,0.00028793,2]
[313918177,1707823834421,-1445.49,0.00028793,2]
[313918178,1707823834431,-500.0,0.00028793,2]
[313918179,1707823834442,-500.0,0.00028793,2]
[313918180,1707823834451,-500.0,0.00028793,2]
[313918181,1707823834461,-500.0,0.00028793,2]
[313918182,1707823834471,-500.0,0.00028793,2]
[313918183,1707823834481,-552.15,0.00028793,2]
[313918184,1707823834491,-500.0,0.00028793,2]
[313918185,1707823834501,-500.0,0.00028793,2]
[313918186,1707823834510,-500.0,0.00028793,2]
[313918187,1707823834520,-500.0,0.00028793,2]
[313918188,1707823834530,-500.0,0.00028793,2]
[313918189,1707823834540,-500.0,0.00028793,2]
[313918190,1707823834550,-554.93724177,0.00028793,2]
[313918191,1707823834560,-500.0,0.00028793,2]
[313918192,1707823834570,-500.55,0.00028793,2]
[313918193,1707823834581,-544.89,0.00028793,2]
[313918194,1707823834591,-564.04266716,0.00028793,2]
[313918195,1707823834602,-500.0,0.00028793,2]
[313918196,1707823834613,-500.0,0.00028793,2]
[313918197,1707823834624,-500.0,0.00028793,2]
[313918198,1707823834635,-1167.13,0.00028793,2]
[313918199,1707823834646,-1691.15,0.00028793,2]
[313918200,1707823834657,-500.0,0.00028793,2]
[313918201,1707823834669,-500.0,0.00028793,2]
[313918202,1707823834680,-500.0,0.00028793,2]
[313918203,1707823834693,-500.0,0.00028793,2]
[313918204,1707823834703,-500.0,0.00028793,2]
[313918205,1707823834714,-525.08,0.00028793,2]
[313918206,1707823834725,-500.0,0.00028793,2]
[313918207,1707823834736,-500.0,0.00028793,2]
[313918208,1707823834748,-500.0,0.00028793,2]
[313918209,1707823834759,-500.0,0.00028793,2]
[313918210,1707823834771,-500.0,0.00028793,2]
[313918211,1707823834781,-500.0,0.00028793,2]
[313918212,1707823834791,-1396.74,0.00028793,2]
[313918213,1707823834802,-519.34273703,0.00028793,2]
[313918214,1707823834813,-1050.85,0.00028793,2]
[313918215,1707823834824,-562.43,0.00028793,2]
[313918216,1707823834836,-595.88603461,0.00028793,2]
[313918217,1707823834847,-344.28859036,0.00028793,2]
[313918218,1707823834858,-2526.49,0.00028793,2]
[313918219,1707823834870,-500.0,0.00028793,2]
[313918220,1707823834882,-500.0,0.00028793,2]
[313918221,1707823834894,-611.67218114,0.00028793,2]
[313918222,1707823834905,-500.0,0.00028793,2]
[313918223,1707823834917,-500.0,0.00028793,2]
[313918224,1707823834927,-494.16762571,0.00028793,2]
[313918225,1707823834940,-500.0,0.00028793,2]
[313918226,1707823834952,-500.0,0.00028793,2]